fUST/lending_fUST_20240129
["ID","MTS","AMOUNT","RATE_DAILY","PERIOD"]
[312931967,1706469045361,-15390.37952808,0.00021915,2]
[312931968,1706469045369,-3920.80468964,0.00021915,2]
[312931969,1706469045379,-2709.69212169,0.00021915,5]
[312931970,1706469045388,-151.0,0.00021915,2]
[312931971,1706469045397,-151.0,0.00021915,2]
[312931972,1706469045406,-331.931464,0.00021915,2]
[312931973,1706469045415,-331.931464,0.00021915,2]
[312931974,1706469045424,-491.749074,0.00021915,2]
[312931975,1706469045433,-491.749074,0.00021915,2]
[312931976,1706469045443,-10000.0,0.00021915,2]
[312931977,1706469045452,-10000.0,0.00021915,2]
[312931978,1706469045461,-151.0,0.00021915,2]
[312931979,1706469045471,-617.43150874,0.00021916,2]
[312931980,1706469045480,-1355.07421576,0.00021917,5]
[312931981,1706469045489,-166.666666,0.00021918,2]
[312931982,1706469045499,-153.0,0.00021918,2]
[312931983,1706469045508,-177.3061975,0.00021918,2]
[312931984,1706469045517,-153.0,0.00021918,2]
[312931985,1706469045527,-153.0,0.00021918,2]
[312931986,1706469045536,-153.0,0.00021918,2]
[312931987,1706469045545,-306.0,0.00021918,2]
[312931988,1706469045554,-426.44750157,0.00022,2]
[312931990,1706469045564,-2036.5412467,0.00022,2]
[312931992,1706469045574,-3972.88161015,0.00022,2]
[312931993,1706469045583,-155.00465014,0.00022,2]
[312931995,1706469045592,-1700.8209344,0.00022,2]
[312931997,1706469045601,-621.43462809,0.0002208,2]
[312931998,1706469045610,-178.91649602,0.00022113,2]
[312932000,1706469045621,-332.25503996,0.00022113,2]
[312932002,1706469045634,-3845.54835849,0.00022113,2]
[312932003,1706469045643,-155.33030437,0.00022113,2]
[312932004,1706469045652,-2817.08459116,0.00022113,2]
[312932005,1706469045661,-2644.62988101,0.00022113,2]
[312932006,1706469045670,-176.47754897,0.00022113,2]
[312932007,1706469045679,-151.0,0.00022113,2]
[312932008,1706469045688,-151.0,0.00022113,2]
[312932009,1706469045696,-331.931464,0.00022113,2]
[312932010,1706469045706,-331.931464,0.00022113,2]
[312932011,1706469045715,-491.749074,0.00022113,2]
[312932012,1706469045724,-491.749074,0.00022113,2]
[312932013,1706469045733,-10000.0,0.00022113,2]
[312932014,1706469045743,-10000.0,0.00022113,2]
[312932015,1706469045752,-151.0,0.00022113,2]
[312932016,1706469045761,-309.69636368,0.00022114,2]
[312932017,1706469045772,-156.30169495,0.00022114,2]
[312932018,1706469045781,-584.05411463,0.00022114,2]
[312932019,1706469045792,-415.76505033,0.00022163,2]
[312932020,1706469045801,-160.99225998,0.00022163,2]
[312932021,1706469045810,-500.0,0.00022163,2]
[312932022,1706469045820,-298.48147438,0.00022163,2]
[312932023,1706469045829,-500.0,0.00022163,2]
[312932024,1706469045838,-500.0,0.00022163,2]
[312932025,1706469045847,-500.0,0.00022163,2]
[312932026,1706469045857,-500.0,0.00022163,2]
[312932027,1706469045866,-500.0,0.00022163,2]
[312932028,1706469045876,-193.66564597,0.00022163,2]
[312932029,1706469045886,-500.0,0.00022163,2]
[312932030,1706469045895,-500.0,0.00022163,2]
[312932031,1706469045904,-544.56874244,0.00022163,2]
[312932032,1706469045913,-481.11357031,0.00022163,2]
[312932033,1706469045922,-500.0,0.00022163,2]
[312932035,1706469045932,-50000.0,0.00022164,2]
[312932037,1706469045941,-151.0,0.00022164,2]
[312932039,1706469045951,-151.0,0.00022164,2]
[312932041,1706469045960,-331.931464,0.00022164,2]
[312932043,1706469045969,-331.931464,0.00022164,2]
[312932045,1706469045978,-491.749074,0.00022164,2]
[312932047,1706469045987,-491.749074,0.00022164,2]
[312932050,1706469045996,-10000.0,0.00022164,2]
[312932053,1706469046005,-10000.0,0.00022164,2]
[312932056,1706469046014,-151.0,0.00022164,2]
[312932059,1706469046025,-155.01085076,0.00022191,2]
[312932062,1706469046035,-500.0,0.000222,2]
[312932065,1706469046044,-200.0,0.00022228,7]
[312932069,1706469046053,-166.666666,0.00022431,2]
[312932072,1706469046063,-546.99886114,0.00022465,4]
[312932075,1706469046072,-309.76769358,0.00022465,2]
[312932077,1706469046081,-153.0,0.00022466,2]
[312932080,1706469046092,-153.0,0.00022466,2]
[312932084,1706469046101,-153.0,0.00022466,2]
[312932086,1706469046110,-307.4659568,0.00022466,2]
[312932090,1706469046119,-153.0,0.00022466,2]
[312932093,1706469046129,-153.0,0.00022466,2]
[312932096,1706469046138,-151.0,0.00022584,2]
[312932098,1706469046147,-153.0,0.0002274,2]
[312932100,1706469046157,-153.0,0.0002274,2]
[312932102,1706469046166,-306.0,0.0002274,2]
[312932103,1706469046175,-199.4949389,0.0002274,2]
[312932105,1706469046184,-153.0,0.0002274,2]
[312932107,1706469046193,-153.0,0.0002274,2]
[312932109,1706469046203,-306.0,0.0002274,2]
[312932111,1706469046212,-153.0,0.0002274,2]
[312932113,1706469046221,-153.0,0.0002274,2]
[312932115,1706469046231,-199.4949389,0.0002274,2]
[312932117,1706469046240,-199.4949389,0.0002274,2]
[312932119,1706469046250,-153.0,0.0002274,2]
[312932122,1706469046259,-199.4949389,0.0002274,2]
[312932123,1706469046269,-166.666666,0.00022944,2]
[312932125,1706469046278,-1419.08911956,0.00023,2]
[312932127,1706469046287,-9950.40162057,0.00023,2]
[312932129,1706469046296,-151.0,0.00023,2]
[312932131,1706469046306,-331.931464,0.00023,2]
[312932133,1706469046315,-331.931464,0.00023,2]
[312932135,1706469046324,-620.0717314,0.00023184,2]
[312932137,1706469046334,-491.749074,0.00023184,2]
[312932139,1706469046343,-491.749068,0.00023184,2]
[312932142,1706469046353,-10000.0,0.00023184,2]
[312932143,1706469046362,-10000.0,0.00023184,2]
[312932146,1706469046371,-151.0,0.00023184,2]
[312932148,1706469046381,-500.0,0.000232,2]
[312932150,1706469046390,-2871.11130404,0.000233,3]
[312932152,1706469046399,-278.92075551,0.000233,2]
[312932154,1706469046409,-151.0,0.00023391,2]
[312932156,1706469046418,-166.666666,0.00023456,2]
[312932158,1706469046427,-156.2311328,0.00023562,2]
[312932159,1706469046436,-189.72815733,0.000239,2]
[312932162,1706469046445,-166.666666,0.00023969,2]
[312932163,1706469046455,-4018.69495971,0.00024,2]
[312932166,1706469046465,-155.84134151,0.00024101,2]
[312932167,1706469046473,-155.52200796,0.00024107,2]
[312932169,1706469046483,-176.86265737,0.00024108,2]
[312932171,1706469046492,-5000.0,0.00024166,2]
[312932174,1706469046502,-259.19142064,0.00024189,2]
[312932175,1706469046512,-151.0,0.00024197,2]
[312932177,1706469046522,-155.60546346,0.00024198,2]
[312932179,1706469046531,-200.0,0.00024198,2]
[312932181,1706469046541,-500.0,0.000242,2]
[312932183,1706469046551,-577.0,0.000242,2]
[312932185,1706469046561,-620.00358657,0.00024343,2]
[312932187,1706469046571,-280.0,0.0002445,7]
[312932189,1706469046580,-166.666666,0.00024482,2]
[312932191,1706469046589,-50000.0,0.00024511,2]
[312932193,1706469046599,-50000.0,0.00024511,2]
[312932195,1706469046608,-331.931464,0.00024511,2]
[312932197,1706469046617,-331.931467,0.00024511,2]
[312932199,1706469046629,-151.0,0.00024511,2]
[312932202,1706469046639,-50000.0,0.00024511,2]
[312932203,1706469046648,-24113.58747695,0.00024511,2]
[312932211,1706469046836,-25886.41252305,0.00024511,2]
[312932213,1706469046845,-169.04243065,0.00024555,2]
[312932215,1706469046854,-303.13985087,0.00024655,2]
[312932217,1706469046864,-1239.470129,0.00024658,2]
[312932219,1706469046872,-280.0,0.00024658,2]
[312932221,1706469046882,-200.0,0.00024658,2]
[312932223,1706469046891,-499.00501624,0.0002496,5]
[312932225,1706469046900,-4729.25513018,0.00025,2]
[312932227,1706469046909,-7652.00570539,0.00025,2]
[312932229,1706469046918,-1352.4762538,0.00025,2]
[312932231,1706469046927,-155.02635448,0.00025,2]
[312932233,1706469046936,-300.61921216,0.00025,2]
[312932235,1706469046945,-18626.43432723,0.00025,2]
[312932237,1706469046953,-680.48366856,0.00025,2]
[312932239,1706469046963,-1828.7489345,0.00025,2]
[312932241,1706469046972,-851.25790385,0.00025,2]
[312932243,1706469046981,-1008.6449999,0.00025,2]
[312932245,1706469046990,-151.0,0.00025003,2]
[312932247,1706469046999,-997.5,0.000252,2]
[312932249,1706469047008,-153.0,0.00025205,2]
[312932251,1706469047018,-153.0,0.00025205,2]
[312932253,1706469047028,-281.3626415,0.00025205,2]
[312932255,1706469047037,-199.4949389,0.00025205,2]
[312932257,1706469047046,-153.0,0.00025205,2]
[312932260,1706469047056,-153.0,0.00025205,2]
[312932262,1706469047065,-199.4949389,0.00025205,2]
[312932264,1706469047074,-153.0,0.00025205,2]
[312932266,1706469047086,-153.0,0.00025205,2]
[312932268,1706469047095,-153.0,0.00025205,2]
[312932270,1706469047104,-199.4949389,0.00025205,2]
[312932272,1706469047112,-199.4949389,0.00025205,2]
[312932274,1706469047121,-153.0,0.00025205,2]
[312932276,1706469047130,-153.0,0.00025205,2]
[312932278,1706469047139,-153.0,0.00025205,2]
[312932280,1706469047148,-153.0,0.00025205,2]
[312932282,1706469047157,-199.4949389,0.00025205,2]
[312932284,1706469047166,-199.4949389,0.00025205,2]
[312932286,1706469047176,-199.4949389,0.00025205,2]
[312932288,1706469047184,-5000.0,0.00025315,2]
[312932290,1706469047193,-200.0,0.00025479,2]
[312932292,1706469047205,-620.00017933,0.0002556,2]
[312932294,1706469047215,-151.0,0.0002581,2]
[312932296,1706469047224,-5000.0,0.00025877,2]
[312932298,1706469047235,-5000.0,0.00025877,2]
[312932300,1706469047243,-5000.0,0.00025877,2]
[312932302,1706469047253,-5000.0,0.00025877,2]
[312932304,1706469047262,-1500.0,0.00026,2]
[312932306,1706469047272,-1500.0,0.00026,2]
[312932309,1706469047281,-1500.0,0.00026,2]
[312932311,1706469047291,-1500.0,0.00026,2]
[312932313,1706469047300,-1500.0,0.00026,2]
[312932315,1706469047309,-1500.0,0.00026,2]
[312932317,1706469047318,-1500.0,0.00026,2]
[312932319,1706469047327,-1500.0,0.00026,2]
[312932321,1706469047337,-1500.0,0.00026,2]
[312932323,1706469047346,-1500.0,0.00026,2]
[312932325,1706469047355,-1126.18,0.00026,2]
[312932327,1706469047365,-199.4949389,0.00026027,2]
[312932329,1706469047374,-199.4949389,0.00026027,2]
[312932331,1706469047383,-1239.470129,0.00026484,2]
[312932332,1706469047392,-151.0,0.00026616,2]
[312932335,1706469047402,-2571.48665809,0.000268,3]
[312932337,1706469047411,-620.00000897,0.00026838,2]
[312932339,1706469047420,-153.0,0.00026849,2]
[312932341,1706469047429,-153.0,0.00026849,2]
[312932343,1706469047438,-251.0,0.00026896,15]
[312932345,1706469047448,-200.0,0.000269,4]
[312932347,1706469047457,-64659.0,0.00027,2]
[312932349,1706469047466,-18916.75017709,0.00027,2]
[312932353,1706469047498,-244.23818961,0.00020217,2]
[312932355,1706469047507,-1755.76181039,0.00021779,2]
[312932432,1706469350338,151.00151002,0.00028843,120]
[312932519,1706470232184,-155.00155002,0.000196,3]
[312932520,1706470232193,-2800.52162057,0.00019635,2]
[312932521,1706470232204,-771.43578183,0.00019635,2]
[312932522,1706470232213,-244.23818961,0.0002,2]
[312932523,1706470232222,-608.964344,0.00020007,2]
[312932524,1706470232231,-164.37495,0.00020189,2]
[312932525,1706470232240,-155.1806804,0.00020218,2]
[312932526,1706470232249,-499.71345657,0.00021669,3]
[312932633,1706470238258,-419.731,0.00021669,3]
[312932639,1706470238315,-1626.93440702,0.00021669,3]
[312932937,1706470243198,-4385.02113641,0.00021669,3]
[312932939,1706470243208,-11988.01,0.00021669,3]
[312932941,1706470243217,-9337.46886359,0.00021669,3]
[312933357,1706470246311,-8325.01,0.00021669,3]
[312933359,1706470246321,-6937.51,0.00021669,3]
[312933361,1706470246331,-214.74427134,0.00021678,2]
[312933363,1706470246341,-211929.58385313,0.00021679,2]
[312933367,1706470246368,-3347.0,0.00021679,2]
[312939771,1706471353195,2798.44,0.00015,2]
[312939772,1706471369194,155.00155002,0.00015,2]
[312939773,1706471374081,938.62076377,0.00015,2]
[312939774,1706471377083,155.00155002,0.000135,2]
[312939775,1706471385271,172.62430264,0.00015,2]
[312939778,1706471386442,234.47285412,0.00015,2]
[312939779,1706471388087,938.62076377,0.00015,2]
[312939780,1706471399066,155.00155002,0.000135,2]
[312939783,1706471400337,1110.69036683,0.00015,2]
[312939784,1706471404554,234.47285412,0.00015,2]
[312939785,1706471406074,705.39453075,0.00015,2]
[312939786,1706471416331,1110.69036683,0.00015,2]
[312939787,1706471417082,155.00155002,0.000135,2]
[312939788,1706471418459,332.31972134,0.00015,2]
[312939789,1706471425995,684.8398126,0.00015,2]
[312939812,1706471432338,517.83208954,0.00015,2]
[312939813,1706471433092,155.00155002,0.000135,2]
[312939839,1706471435177,-155.00155002,0.0001951,3]
[312939841,1706471435186,-250.0,0.00020415,2]
[312939843,1706471435195,-304.482172,0.0002042,2]
[312939845,1706471435204,-1379.66627798,0.00021579,2]
[312939852,1706471437976,684.8398126,0.00015,2]
[312939886,1706471439298,-1000.0,0.00021579,2]
[312940169,1706471444126,-366.42002309,0.00021579,2]
[312940231,1706471447494,-1467.5,0.00021579,2]
[312940232,1706471447555,-1476.12834241,0.00021579,2]
[312940235,1706471455086,261.92752603,0.000135,2]
[312940236,1706471455976,684.8398126,0.00015,2]
[312940241,1706471479979,684.8398126,0.00015,2]
[312940242,1706471501975,684.8398126,0.00015,2]
[312940243,1706471522039,200.93825312,0.00015,2]
[312940246,1706471773842,155.0,0.00015,2]
[312940247,1706471789850,214.69807464,0.00015,2]
[312940264,1706472617242,309.72125088,0.000135,2]
[312940392,1706472638831,-155.00155002,0.00019419,3]
[312940394,1706472638841,-150.0,0.00019479,2]
[312940396,1706472638850,-2817.31098004,0.00020044,2]
[312940399,1706472638861,-3327.79813989,0.00020044,2]
[312940493,1706472641731,-6571.89325987,0.00020044,2]
[312940494,1706472641743,-1980.1480973,0.00020044,2]
[312940495,1706472641755,-500.0,0.00020044,2]
[312940496,1706472641765,-500.0,0.00020044,2]
[312940497,1706472641775,-500.0,0.00020044,2]
[312940498,1706472641785,-500.0,0.00020044,2]
[312940499,1706472641794,-500.0,0.00020044,2]
[312940500,1706472641804,-500.0,0.00020044,2]
[312940501,1706472641813,-500.0,0.00020044,2]
[312940502,1706472641823,-500.0,0.00020044,2]
[312940503,1706472641832,-187.41290431,0.00020044,2]
[312940504,1706472641844,-310.67709569,0.00020044,2]
[312940505,1706472641853,-304.482172,0.00020223,2]
[312940506,1706472641863,-245.5557899,0.00020274,2]
[312940507,1706472641872,-273.19777793,0.00021479,2]
[312940508,1706472641882,-500.0,0.00021569,2]
[312940509,1706472641891,-500.0,0.00021569,2]
[312940510,1706472641901,-500.0,0.00021569,2]
[312940511,1706472641910,-500.0,0.00021569,2]
[312940512,1706472642023,-500.0,0.00021569,2]
[312940513,1706472642033,-780.19789076,0.00021579,2]
[312940551,1706472643659,-8283.73,0.00021569,3]
[312940553,1706472643668,-17697.35282832,0.00021579,2]
[312940590,1706472646710,-9959.81758046,0.00021579,2]
[312940591,1706472646724,-11300.00000005,0.00021579,2]
[312940592,1706472646735,-7692.24921874,0.00021579,2]
[312940593,1706472646773,-6718.49534406,0.00021579,2]
[312940594,1706472646782,-6954.19068532,0.00021679,2]
[312940595,1706472646794,-2660.95351395,0.00021679,2]
[312940596,1706472890139,-155.00775039,0.00019318,3]
[312940597,1706472890171,-185.5685607,0.00019319,2]
[312940598,1706472890197,-155.00775039,0.00021569,3]
[312940599,1706472890208,-185.5685607,0.00021569,3]
[312940600,1706472890219,-1518.84737782,0.00021569,3]
[312940601,1706472965443,-155.00775039,0.00019419,3]
[312940602,1706472965591,-2859.30449922,0.00021559,3]
[312940603,1706472965648,-322.79918969,0.00021559,3]
[312940635,1706473833045,-155.00310006,0.0001941,3]
[312940636,1706473833059,-500.0,0.00021451,2]
[312940637,1706473833068,-500.0,0.00021451,2]
[312940638,1706473833078,-500.0,0.00021451,2]
[312940639,1706473833088,-99.84205229,0.00021451,2]
[312940640,1706473833099,-400.15794771,0.00021451,2]
[312940641,1706473833109,-500.0,0.00021451,2]
[312940642,1706473833118,-500.0,0.00021451,2]
[312940643,1706473833129,-500.0,0.00021451,2]
[312940644,1706473833138,-500.0,0.00021451,2]
[312940645,1706473833148,-500.0,0.00021451,2]
[312940646,1706473833157,-500.0,0.00021451,2]
[312940647,1706473833166,-500.0,0.00021451,2]
[312940648,1706473833175,-500.0,0.00021451,2]
[312940649,1706473833184,-363.51612152,0.00021451,2]
[312940650,1706473833197,-136.48387848,0.00021451,2]
[312940651,1706473833206,-500.0,0.00021451,2]
[312940652,1706473833215,-500.0,0.00021451,2]
[312940653,1706473833225,-500.0,0.00021451,2]
[312940654,1706473833234,-500.0,0.00021451,2]
[312940655,1706473833243,-500.0,0.00021451,2]
[312940656,1706473833253,-500.0,0.00021451,2]
[312940657,1706473833262,-500.0,0.00021451,2]
[312940658,1706473833271,-500.0,0.00021451,2]
[312940659,1706473833280,-500.0,0.00021451,2]
[312940660,1706473833289,-500.0,0.00021451,2]
[312940661,1706473833298,-500.0,0.00021451,2]
[312940662,1706473833307,-500.0,0.00021451,2]
[312940663,1706473833316,-500.0,0.00021451,2]
[312940664,1706473833326,-500.0,0.00021451,2]
[312940665,1706473833335,-500.0,0.00021451,2]
[312940666,1706473833344,-500.0,0.00021451,2]
[312940667,1706473833353,-500.0,0.00021451,2]
[312940668,1706473833362,-500.0,0.00021451,2]
[312940669,1706473833371,-6062.86,0.00021451,3]
[312940670,1706473833381,-500.0,0.00021451,2]
[312940671,1706473833390,-500.0,0.00021451,2]
[312940672,1706473833399,-500.0,0.00021451,2]
[312940673,1706473833408,-500.0,0.00021451,2]
[312940674,1706473833417,-500.0,0.00021451,2]
[312940675,1706473833426,-500.0,0.00021451,2]
[312940676,1706473833435,-5052.38,0.00021451,3]
[312940677,1706473833444,-7392.3256281,0.00021461,2]
[312940678,1706473833458,-3426.47469384,0.00021461,2]
[312941301,1706475041029,-180.0,0.00019386,2]
[312941302,1706475041039,-155.00310006,0.00019387,3]
[312941303,1706475041048,-215.4835029,0.00020893,2]
[312941304,1706475041057,-2145.36901528,0.00021351,3]
[312941305,1706475041083,-618.09098472,0.00021351,3]
[312941306,1706475041092,-210.45922703,0.00021361,2]
[312941307,1706475041101,-500.0,0.00021361,2]
[312941308,1706475041111,-500.0,0.00021361,2]
[312941309,1706475041120,-500.0,0.00021361,2]
[312941310,1706475041129,-500.0,0.00021361,2]
[312941311,1706475041138,-500.0,0.00021361,2]
[312941312,1706475041147,-500.0,0.00021361,2]
[312941313,1706475041156,-500.0,0.00021361,2]
[312941314,1706475041166,-500.0,0.00021361,2]
[312941315,1706475041176,-500.0,0.00021361,2]
[312941316,1706475041184,-500.0,0.00021361,2]
[312941317,1706475041194,-500.0,0.00021361,2]
[312941318,1706475041203,-500.0,0.00021361,2]
[312941319,1706475041212,-500.0,0.00021361,2]
[312941320,1706475041221,-500.0,0.00021361,2]
[312941321,1706475041230,-500.0,0.00021361,2]
[312941322,1706475041239,-500.0,0.00021361,2]
[312941323,1706475041249,-500.0,0.00021361,2]
[312941324,1706475041258,-500.0,0.00021361,2]
[312941325,1706475041267,-500.0,0.00021361,2]
[312941326,1706475041276,-500.0,0.00021361,2]
[312941327,1706475041285,-500.0,0.00021361,2]
[312941328,1706475041294,-279.9497882,0.00021361,2]
[312941329,1706475041306,-220.0502118,0.00021361,2]
[312941330,1706475041315,-500.0,0.00021361,2]
[312941331,1706475041324,-217.8014132,0.00021361,2]
[312941332,1706475041336,-282.1985868,0.00021361,2]
[312941333,1706475041345,-500.0,0.00021361,2]
[312941334,1706475041354,-500.0,0.00021361,2]
[312941335,1706475041362,-500.0,0.00021361,2]
[312941336,1706475041372,-500.0,0.00021361,2]
[312941337,1706475041381,-500.0,0.00021361,2]
[312941338,1706475041390,-500.0,0.00021361,2]
[312941339,1706475041398,-538.66234002,0.00021361,2]
[312941340,1706475041409,-1499.44008239,0.00021361,2]
[312941341,1706475041420,-4205.89,0.00021361,2]
[312941363,1706475043061,-1694.23646529,0.00021351,3]
[312941364,1706475043073,-2620.44353471,0.00021351,3]
[312941365,1706475043082,-1919.96828894,0.00021361,2]
[312941366,1706475043094,-1632.3332632,0.00021361,2]
[312941367,1706475043125,-500.0,0.00021361,2]
[312941369,1706475043136,-445.52364689,0.00021361,2]
[312941549,1706475490609,151.00151002,0.0002849,30]
[312941550,1706475490784,151.00151002,0.0002792,120]
[312941553,1706475780394,155.00310006,0.00016641,3]
[312941554,1706475794388,155.00310006,0.00016641,3]
[312941555,1706475812394,155.00310006,0.0001664,3]
[312941557,1706475836406,155.00310006,0.00016639,3]
[312941558,1706475852414,155.00310006,0.00014975,2]
[312941559,1706475870412,155.00310006,0.00014974,2]
[312941560,1706475878211,343.44691055,0.00014975,2]
[312941561,1706475879250,155.00310006,0.00014975,2]
[312941562,1706475892418,155.00310006,0.00014974,2]
[312941563,1706475893252,215.91264434,0.00014975,2]
[312941564,1706475896213,343.44691055,0.00014975,2]
[312941567,1706475908423,155.00310006,0.00014974,2]
[312941568,1706475912218,342.39661163,0.00014975,2]
[312941570,1706475916342,949.87454992,0.00014975,2]
[312941571,1706475932432,155.00310006,0.00014972,2]
[312941572,1706475946745,938.28404821,0.00014975,2]
[312941574,1706475952481,155.00310006,0.00014972,2]
[312941575,1706475962736,653.43044393,0.00014975,2]
[312941576,1706475972428,155.00310006,0.00014972,2]
[312941578,1706475987504,151.00151002,0.000282,30]
[312941579,1706475990432,155.00310006,0.00014971,2]
[312941580,1706476006427,155.00310006,0.00014971,2]
[312941582,1706476024432,155.00310006,0.00014971,2]
[312941584,1706476044464,155.00310006,0.00014969,2]
[312941585,1706476062449,155.00310006,0.00014969,2]
[312941586,1706476080431,155.00310006,0.00014968,2]
[312941587,1706476096435,155.00310006,0.00014967,2]
[312941588,1706476116439,155.00310006,0.00014967,2]
[312941590,1706476140464,155.00310006,0.00014966,2]
[312941591,1706476156444,155.00310006,0.00013694,2]
[312941601,1706476172458,155.00310006,0.00013694,2]
[312941602,1706476196449,155.00310006,0.00013693,2]
[312941608,1706476214454,155.00310006,0.00013692,2]
[312941641,1706476232162,-155.00310006,0.00015214,2]
[312941643,1706476232171,-175.37542985,0.00015214,2]
[312941645,1706476232180,-4440.07137493,0.00015215,2]
[312941752,1706476238290,-155.00310006,0.00015214,2]
[312941753,1706476238300,-4888.02848704,0.00015215,2]
[312941754,1706476238311,-1891.039719,0.00015215,2]
[312941979,1706476241328,-476.48639649,0.00015215,2]
[312941981,1706476241339,-3737.96498787,0.00015215,2]
[312941994,1706476243225,-20919.92879055,0.00015214,2]
[312941995,1706476243235,-7317.12095069,0.00015215,2]
[312941996,1706476243246,-3005.07137425,0.00015215,2]
[312942012,1706476247781,-175.37542985,0.00015213,2]
[312942013,1706476247791,-155.00310006,0.00015214,2]
[312942014,1706476247800,-55513.04648914,0.00015215,2]
[312942015,1706476247810,-24900.0,0.00015218,2]
[312942016,1706476247819,-208.6110556,0.00015639,2]
[312942017,1706476247829,-210.45922703,0.00016541,2]
[312942018,1706476247838,-158919.37080397,0.00016641,2]
[312942019,1706476252560,155.00310006,0.00013692,2]
[312942020,1706476270460,155.00310006,0.00014975,2]
[312942021,1706476617415,10930.611936,0.00014531,2]
[312942022,1706476683519,237.79983819,0.00013446,2]
[312942023,1706476985304,7015.0,0.0003,120]
[312942024,1706477060903,200.0,0.00022184,7]
[312942025,1706477061675,348.0,0.00022184,7]
[312942026,1706477106654,1927.735033,0.00014164,2]
[312942312,1706477438511,-453.28196782,0.00015117,2]
[312942315,1706477438522,-3489.16252362,0.00015118,2]
[312942317,1706477438532,-1580.96149177,0.00015118,2]
[312942319,1706477438543,-155.00155002,0.00015118,2]
[312942321,1706477438556,-155.00155002,0.00015118,2]
[312942324,1706477438567,-555.97053838,0.00015119,2]
[312942326,1706477438580,-179.08321251,0.00015119,2]
[312942328,1706477438592,-175.37542985,0.0001512,2]
[312942331,1706477438602,-155.00155002,0.00015121,2]
[312942333,1706477438613,-1995.52315242,0.00015121,2]
[312942335,1706477438625,-19884.40674015,0.00015121,2]
[312942337,1706477438636,-7968.22560607,0.00015122,2]
[312942339,1706477438647,-20892.43059927,0.00015122,2]
[312942341,1706477438657,-522.0841828,0.00015208,2]
[312942343,1706477438668,-155.00310006,0.00015233,2]
[312942345,1706477438679,-309.89938513,0.00016636,2]
[312942348,1706477438691,-200.0,0.00016636,2]
[312942349,1706477438702,-7066.62110254,0.00016637,2]
[312942352,1706477438713,-522.41614365,0.00016639,2]
[312942354,1706477438724,-2947.40520032,0.0001664,2]
[312942356,1706477438734,-538.13039431,0.00016643,2]
[312942358,1706477438745,-154.98450255,0.000176,2]
[312942360,1706477438756,-280.0,0.000183,2]
[312942362,1706477438767,-163.537017,0.00019178,2]
[312942364,1706477438777,-199.4949389,0.00019452,2]
[312942365,1706477438788,-199.4949389,0.00019452,2]
[312942366,1706477438799,-199.4949389,0.00019456,2]
[312942367,1706477438810,-199.4949389,0.00019856,2]
[312942368,1706477438820,-2009.46951326,0.0002,2]
[312942369,1706477438831,-391.0,0.0002013,2]
[312942370,1706477438842,-199.4949389,0.00020274,2]
[312942371,1706477438853,-199.4949389,0.00020274,2]
[312942372,1706477438863,-393.8829167,0.00020274,2]
[312942373,1706477438874,-4051.35,0.00021157,3]
[312942374,1706477438886,-24329.27674963,0.00021167,2]
[312942429,1706477441446,-689.4019881,0.00021167,2]
[312942527,1706478638725,-1795.60910665,0.00020662,2]
[312942530,1706478638736,-199.91404577,0.00020662,2]
[312942532,1706478638745,-155.00155002,0.00020663,2]
[312942534,1706478638754,-175.37542985,0.00020663,2]
[312942536,1706478638763,-155.00155002,0.00020664,2]
[312942538,1706478638773,-4750.09581014,0.00020664,2]
[312942646,1706478644962,-522.60932661,0.00020661,2]
[312942648,1706478644972,-14171.08149592,0.00020664,2]
[312942650,1706478644981,-1697.47554063,0.00020665,2]